[Event "Titled Tuesday Blitz March 29 Early 2022"]
[White "Chernyavsky, Alexander"]
[Black "Vysochin, Spartak"]
[WhiteFideId "24131156"]
[BlackFideId "14103516"]
[WhiteElo "2292"]
[BlackElo "2385"]
[Result "1-0"]
[Round "02"]
[TimeControl "180+1"]
[Date "2022.03.30"]
[WhiteClock "0:00:06"]
[BlackClock "0:00:12"]

1. c4 {[%clk 0:02:56]}  e5 {[%clk 0:02:58]} 2. Nc3 {[%clk 0:02:53]}  Bb4 {[%clk 0:02:57]} 3. Nd5 {[%clk 0:02:53]}  Bc5 {[%clk 0:02:57]} 4. e3 {[%clk 0:02:36]}  c6 {[%clk 0:02:57]} 5. b4 {[%clk 0:02:36]}  Bf8 {[%clk 0:02:56]} 6. Nc3 {[%clk 0:02:30]}  Bxb4 {[%clk 0:02:55]} 7. Qb3 {[%clk 0:02:29]}  Na6 {[%clk 0:02:54]} 8. Nf3 {[%clk 0:02:27]}  d6 {[%clk 0:02:48]} 9. d4 {[%clk 0:02:26]}  Qe7 {[%clk 0:02:35]} 10. Bd2 {[%clk 0:01:59]}  Nf6 {[%clk 0:02:24]} 11. a3 {[%clk 0:01:53]}  Ba5 {[%clk 0:02:22]} 12. Be2 {[%clk 0:01:33]}  O-O {[%clk 0:02:21]} 13. O-O {[%clk 0:01:23]}  Bg4 {[%clk 0:02:20]} 14. c5 {[%clk 0:01:22]}  Bxc3 {[%clk 0:02:08]} 15. cxd6 {[%clk 0:01:19]}  Qxd6 {[%clk 0:02:04]} 16. Bxc3 {[%clk 0:01:13]}  e4 {[%clk 0:02:03]} 17. Bxa6 {[%clk 0:01:13]}  bxa6 {[%clk 0:01:51]} 18. Bb4 {[%clk 0:01:10]}  Rfb8 {[%clk 0:01:27]} 19. Ne5 {[%clk 0:01:10]}  Qe6 {[%clk 0:01:21]} 20. Qxe6 {[%clk 0:01:07]}  Bxe6 {[%clk 0:01:21]} 21. Nxc6 {[%clk 0:01:07]}  Rb6 {[%clk 0:01:19]} 22. Rfc1 {[%clk 0:01:07]}  Nd5 {[%clk 0:01:16]} 23. Rc5 {[%clk 0:00:49]}  h5 {[%clk 0:01:05]} 24. Rxd5 {[%clk 0:00:46]}  Rxc6 {[%clk 0:01:03]} 25. Rxh5 {[%clk 0:00:44]}  Rac8 {[%clk 0:00:58]} 26. Rc5 {[%clk 0:00:41]}  a5 {[%clk 0:00:58]} 27. Rxc6 {[%clk 0:00:30]}  Rxc6 {[%clk 0:00:58]} 28. Bxa5 {[%clk 0:00:31]}  Rc2 {[%clk 0:00:58]} 29. h3 {[%clk 0:00:29]}  Kh7 {[%clk 0:00:54]} 30. Bb4 {[%clk 0:00:25]}  Bc4 {[%clk 0:00:48]} 31. Bc5 {[%clk 0:00:25]}  a6 {[%clk 0:00:47]} 32. Rb1 {[%clk 0:00:25]}  Bb5 {[%clk 0:00:46]} 33. Rb4 {[%clk 0:00:20]}  Rd2 {[%clk 0:00:43]} 34. a4 {[%clk 0:00:19]}  Bd3 {[%clk 0:00:43]} 35. a5 {[%clk 0:00:18]}  g5 {[%clk 0:00:38]} 36. Rb7 {[%clk 0:00:17]}  Kg6 {[%clk 0:00:37]} 37. Rb6+ {[%clk 0:00:17]}  Kg7 {[%clk 0:00:35]} 38. Bd6 {[%clk 0:00:17]}  f5 {[%clk 0:00:25]} 39. Be5+ {[%clk 0:00:15]}  Kh7 {[%clk 0:00:25]} 40. d5 {[%clk 0:00:16]}  Bc4 {[%clk 0:00:21]} 41. Rb7+ {[%clk 0:00:14]}  Kg6 {[%clk 0:00:21]} 42. d6 {[%clk 0:00:15]}  f4 {[%clk 0:00:21]} 43. exf4 {[%clk 0:00:14]}  Kf5 {[%clk 0:00:21]} 44. g4+ {[%clk 0:00:13]}  Ke6 {[%clk 0:00:21]} 45. Re7+ {[%clk 0:00:13]}  Kd5 {[%clk 0:00:20]} 46. d7 {[%clk 0:00:13]}  Kc6 {[%clk 0:00:21]} 47. fxg5 {[%clk 0:00:10]}  e3 {[%clk 0:00:19]} 48. fxe3 {[%clk 0:00:08]}  Be2 {[%clk 0:00:13]} 49. g6 {[%clk 0:00:07]}  Bf3 {[%clk 0:00:13]} 50. g7 {[%clk 0:00:06]}  Rg2+ {[%clk 0:00:12]} 51. Kf1 {[%clk 0:00:06]} 1-0


[Site "https://www.chess.com"]

[Event "Titled Tuesday Blitz March 29 Early 2022"]
[White "Delorme, Alban"]
[Black "Baches Garcia, Guillermo"]
[WhiteFideId "623636"]
[BlackFideId "2209764"]
[WhiteElo "2197"]
[BlackElo "2490"]
[Result "0-1"]
[Round "02"]
[TimeControl "180+1"]
[Date "2022.03.30"]
[WhiteClock "0:00:04"]
[BlackClock "0:00:35"]

1. e4 {[%clk 0:03:00]}  c5 {[%clk 0:03:00]} 2. Nf3 {[%clk 0:03:00]}  d6 {[%clk 0:03:00]} 3. d4 {[%clk 0:03:01]}  cxd4 {[%clk 0:03:01]} 4. Nxd4 {[%clk 0:03:01]}  Nf6 {[%clk 0:03:02]} 5. Nc3 {[%clk 0:03:01]}  Nc6 {[%clk 0:03:02]} 6. Bg5 {[%clk 0:03:00]}  e6 {[%clk 0:03:03]} 7. Qd2 {[%clk 0:03:00]}  h6 {[%clk 0:03:03]} 8. Bh4 {[%clk 0:02:58]}  Nxe4 {[%clk 0:03:03]} 9. Nxc6 {[%clk 0:02:45]}  Qxh4 {[%clk 0:02:59]} 10. Qd4 {[%clk 0:02:22]}  Qxf2+ {[%clk 0:02:41]} 11. Qxf2 {[%clk 0:02:22]}  Nxf2 {[%clk 0:02:42]} 12. Kxf2 {[%clk 0:02:11]}  bxc6 {[%clk 0:02:41]} 13. Bc4 {[%clk 0:02:07]}  d5 {[%clk 0:02:37]} 14. Bb3 {[%clk 0:02:07]}  Bc5+ {[%clk 0:02:34]} 15. Kf3 {[%clk 0:02:06]}  O-O {[%clk 0:02:27]} 16. a4 {[%clk 0:01:59]}  e5 {[%clk 0:02:24]} 17. a5 {[%clk 0:01:57]}  Be6 {[%clk 0:02:20]} 18. Na4 {[%clk 0:01:49]}  Bd6 {[%clk 0:02:19]} 19. Rad1 {[%clk 0:01:47]}  e4+ {[%clk 0:02:15]} 20. Kf2 {[%clk 0:01:43]}  Rad8 {[%clk 0:02:12]} 21. c3 {[%clk 0:01:27]}  f5 {[%clk 0:02:02]} 22. Rhe1 {[%clk 0:01:18]}  Kf7 {[%clk 0:01:57]} 23. g3 {[%clk 0:01:12]}  g5 {[%clk 0:01:55]} 24. Rc1 {[%clk 0:01:07]}  Kf6 {[%clk 0:01:50]} 25. c4 {[%clk 0:01:05]}  d4 {[%clk 0:01:45]} 26. Ba2 {[%clk 0:00:56]}  c5 {[%clk 0:01:39]} 27. b4 {[%clk 0:00:55]}  cxb4 {[%clk 0:01:37]} 28. c5 {[%clk 0:00:55]}  Bxa2 {[%clk 0:01:27]} 29. cxd6 {[%clk 0:00:53]}  Rxd6 {[%clk 0:01:26]} 30. Nc5 {[%clk 0:00:44]}  d3 {[%clk 0:01:15]} 31. Red1 {[%clk 0:00:37]}  b3 {[%clk 0:01:07]} 32. Rd2 {[%clk 0:00:33]}  Ke5 {[%clk 0:00:55]} 33. Nb7 {[%clk 0:00:22]}  Rd7 {[%clk 0:00:49]} 34. a6 {[%clk 0:00:19]}  Kd4 {[%clk 0:00:44]} 35. Rdd1 {[%clk 0:00:09]}  f4 {[%clk 0:00:41]} 36. Rc6 {[%clk 0:00:08]}  e3+ {[%clk 0:00:40]} 37. Kg1 {[%clk 0:00:06]}  e2 {[%clk 0:00:37]} 38. Re1 {[%clk 0:00:05]}  f3 {[%clk 0:00:35]} 39. Kf2 {[%clk 0:00:04]}  d2 {[%clk 0:00:35]} 0-1


[Site "https://www.chess.com"]

[Event "Titled Tuesday Blitz March 29 Early 2022"]
[White "Derjabin, Ilja"]
[Black "Xiong, Jeffery"]
[WhiteFideId "14104768"]
[BlackFideId "2047640"]
[WhiteElo "2341"]
[BlackElo "2727"]
[Result "0-1"]
[Round "02"]
[TimeControl "180+1"]
[Date "2022.03.30"]
[WhiteClock "0:00:51"]
[BlackClock "0:01:21"]

1. d4 {[%clk 0:02:56]}  Nf6 {[%clk 0:03:00]} 2. c4 {[%clk 0:02:54]}  c5 {[%clk 0:03:00]} 3. d5 {[%clk 0:02:54]}  b5 {[%clk 0:03:00]} 4. e4 {[%clk 0:02:38]}  Nxe4 {[%clk 0:03:00]} 5. Qf3 {[%clk 0:02:33]}  Nd6 {[%clk 0:02:59]} 6. Nc3 {[%clk 0:02:31]}  a6 {[%clk 0:02:42]} 7. Nh3 {[%clk 0:02:25]}  g6 {[%clk 0:02:35]} 8. Bd3 {[%clk 0:02:13]}  Bg7 {[%clk 0:02:35]} 9. Ng5 {[%clk 0:02:13]}  bxc4 {[%clk 0:02:28]} 10. Bc2 {[%clk 0:02:12]}  h6 {[%clk 0:02:16]} 11. Nxf7 {[%clk 0:02:03]}  Nxf7 {[%clk 0:02:16]} 12. Bxg6 {[%clk 0:02:03]}  O-O {[%clk 0:02:00]} 13. Qh5 {[%clk 0:01:48]}  Qb6 {[%clk 0:01:55]} 14. O-O {[%clk 0:01:20]}  Qf6 {[%clk 0:01:46]} 15. f4 {[%clk 0:01:16]}  d6 {[%clk 0:01:36]} 16. Be3 {[%clk 0:01:12]}  Nh8 {[%clk 0:01:36]} 17. Bc2 {[%clk 0:01:11]}  Bf5 {[%clk 0:01:36]} 18. Bd1 {[%clk 0:00:57]}  Nd7 {[%clk 0:01:33]} 19. g4 {[%clk 0:00:55]}  Qg6 {[%clk 0:01:26]} 20. Qh3 {[%clk 0:00:51]}  Nf6 {[%clk 0:01:21]} 0-1


[Site "https://www.chess.com"]

[Event "Titled Tuesday Blitz March 29 Early 2022"]
[White "Derraugh, Geordie"]
[Black "Zhigalko, Sergei"]
[WhiteFideId "2603950"]
[BlackFideId "13502956"]
[WhiteElo "2116"]
[BlackElo "2662"]
[Result "0-1"]
[Round "02"]
[TimeControl "180+1"]
[Date "2022.03.30"]
[WhiteClock "0:00:19"]
[BlackClock "0:00:20"]

1. e4 {[%clk 0:01:59]}  c5 {[%clk 0:02:59]} 2. c3 {[%clk 0:01:58]}  Nf6 {[%clk 0:02:59]} 3. e5 {[%clk 0:01:58]}  Nd5 {[%clk 0:03:00]} 4. d4 {[%clk 0:01:59]}  cxd4 {[%clk 0:03:01]} 5. Nf3 {[%clk 0:01:59]}  Nc6 {[%clk 0:03:01]} 6. cxd4 {[%clk 0:01:59]}  d6 {[%clk 0:03:01]} 7. Nc3 {[%clk 0:02:00]}  e6 {[%clk 0:03:01]} 8. Bd3 {[%clk 0:01:58]}  dxe5 {[%clk 0:02:46]} 9. dxe5 {[%clk 0:01:58]}  Nxc3 {[%clk 0:02:27]} 10. bxc3 {[%clk 0:01:57]}  Qa5 {[%clk 0:02:28]} 11. O-O {[%clk 0:01:54]}  Nxe5 {[%clk 0:02:27]} 12. Nxe5 {[%clk 0:01:52]}  Qxe5 {[%clk 0:02:27]} 13. Ba3 {[%clk 0:01:32]}  Bxa3 {[%clk 0:02:18]} 14. Qa4+ {[%clk 0:01:32]}  Bd7 {[%clk 0:02:18]} 15. Qxa3 {[%clk 0:01:33]}  Bc6 {[%clk 0:02:13]} 16. Rfe1 {[%clk 0:01:22]}  Qc7 {[%clk 0:01:55]} 17. Be4 {[%clk 0:01:18]}  Qe7 {[%clk 0:01:40]} 18. Bxc6+ {[%clk 0:01:12]}  bxc6 {[%clk 0:01:41]} 19. Qa4 {[%clk 0:01:12]}  O-O {[%clk 0:01:40]} 20. Qxc6 {[%clk 0:01:11]}  Rfc8 {[%clk 0:01:40]} 21. Qf3 {[%clk 0:01:11]}  Qf6 {[%clk 0:01:34]} 22. Rac1 {[%clk 0:01:09]}  Qxf3 {[%clk 0:01:34]} 23. gxf3 {[%clk 0:01:08]}  Rc5 {[%clk 0:01:34]} 24. Re3 {[%clk 0:00:56]}  Rac8 {[%clk 0:01:33]} 25. Kf1 {[%clk 0:00:56]}  g6 {[%clk 0:01:31]} 26. h3 {[%clk 0:00:55]}  Kg7 {[%clk 0:01:31]} 27. Ke2 {[%clk 0:00:55]}  Rh5 {[%clk 0:01:30]} 28. Rh1 {[%clk 0:00:55]}  Rc4 {[%clk 0:01:27]} 29. Rd3 {[%clk 0:00:51]}  Ra4 {[%clk 0:01:04]} 30. Rd2 {[%clk 0:00:47]}  Re5+ {[%clk 0:00:59]} 31. Kf1 {[%clk 0:00:28]}  Rc5 {[%clk 0:00:51]} 32. Rc2 {[%clk 0:00:24]}  Ra3 {[%clk 0:00:44]} 33. Kg2 {[%clk 0:00:24]}  Rcxc3 {[%clk 0:00:43]} 34. Rxc3 {[%clk 0:00:24]}  Rxc3 {[%clk 0:00:44]} 35. Rd1 {[%clk 0:00:20]}  Ra3 {[%clk 0:00:43]} 36. Rd2 {[%clk 0:00:20]}  h5 {[%clk 0:00:43]} 37. Rb2 {[%clk 0:00:21]}  Kf6 {[%clk 0:00:43]} 38. Re2 {[%clk 0:00:20]}  Kf5 {[%clk 0:00:43]} 39. Rb2 {[%clk 0:00:20]}  a5 {[%clk 0:00:39]} 40. Rc2 {[%clk 0:00:21]}  a4 {[%clk 0:00:39]} 41. Rb2 {[%clk 0:00:20]}  Ke5 {[%clk 0:00:39]} 42. Rc2 {[%clk 0:00:19]}  g5 {[%clk 0:00:36]} 43. Rb2 {[%clk 0:00:19]}  h4 {[%clk 0:00:32]} 44. Rb5+ {[%clk 0:00:18]}  Kf6 {[%clk 0:00:30]} 45. Rb2 {[%clk 0:00:18]}  Ke7 {[%clk 0:00:30]} 46. Rc2 {[%clk 0:00:18]}  Kd6 {[%clk 0:00:27]} 47. Rb2 {[%clk 0:00:19]}  Kc5 {[%clk 0:00:26]} 48. Rb7 {[%clk 0:00:19]}  Rxa2 {[%clk 0:00:21]} 49. Rxf7 {[%clk 0:00:19]}  Re2 {[%clk 0:00:21]} 50. Rg7 {[%clk 0:00:19]}  Re5 {[%clk 0:00:20]} 51. Ra7 {[%clk 0:00:18]}  Kb4 {[%clk 0:00:20]} 52. f4 {[%clk 0:00:19]}  gxf4 {[%clk 0:00:20]} 53. Kf3 {[%clk 0:00:19]}  a3 {[%clk 0:00:20]} 54. Kxf4 {[%clk 0:00:19]}  Ra5 {[%clk 0:00:20]} 55. Rb7+ {[%clk 0:00:19]}  Kc3 {[%clk 0:00:20]} 56. Rb1 {[%clk 0:00:18]}  a2 {[%clk 0:00:21]} 57. Re1 {[%clk 0:00:17]}  a1=Q {[%clk 0:00:20]} 58. Rxa1 {[%clk 0:00:18]}  Rxa1 {[%clk 0:00:21]} 59. Kg4 {[%clk 0:00:19]}  Ra4+ {[%clk 0:00:20]} 0-1


[Site "https://www.chess.com"]

[Event "Titled Tuesday Blitz March 29 Early 2022"]
[White "Di Nicolantonio, Lucas"]
[Black "Vasquez Schroeder, Rodrigo"]
[WhiteFideId "680460"]
[BlackFideId "3400042"]
[WhiteElo "2381"]
[BlackElo "2561"]
[Result "0-1"]
[Round "02"]
[TimeControl "180+1"]
[Date "2022.03.30"]
[WhiteClock "0:00:03"]
[BlackClock "0:00:55"]

1. Nf3 {[%clk 0:03:00]}  c5 {[%clk 0:02:59]} 2. e4 {[%clk 0:02:56]}  d6 {[%clk 0:02:59]} 3. d4 {[%clk 0:02:55]}  cxd4 {[%clk 0:02:59]} 4. Nxd4 {[%clk 0:02:56]}  Nf6 {[%clk 0:03:00]} 5. f3 {[%clk 0:02:56]}  g6 {[%clk 0:02:58]} 6. c4 {[%clk 0:02:56]}  Bg7 {[%clk 0:02:59]} 7. Nc3 {[%clk 0:02:57]}  O-O {[%clk 0:02:59]} 8. Be3 {[%clk 0:02:58]}  Nc6 {[%clk 0:03:00]} 9. Qd2 {[%clk 0:02:58]}  Bd7 {[%clk 0:03:00]} 10. Be2 {[%clk 0:02:58]}  Nxd4 {[%clk 0:03:01]} 11. Bxd4 {[%clk 0:02:58]}  a5 {[%clk 0:03:01]} 12. O-O {[%clk 0:02:57]}  Bc6 {[%clk 0:03:02]} 13. Rac1 {[%clk 0:02:50]}  Nd7 {[%clk 0:03:02]} 14. Be3 {[%clk 0:02:49]}  Nc5 {[%clk 0:03:02]} 15. b3 {[%clk 0:02:44]}  Qb6 {[%clk 0:03:02]} 16. Kh1 {[%clk 0:02:41]}  Rfc8 {[%clk 0:03:00]} 17. Nd5 {[%clk 0:02:38]}  Qd8 {[%clk 0:02:53]} 18. Rfd1 {[%clk 0:02:35]}  Bxd5 {[%clk 0:02:48]} 19. cxd5 {[%clk 0:02:32]}  Rab8 {[%clk 0:02:40]} 20. Bb5 {[%clk 0:02:20]}  Qb6 {[%clk 0:02:39]} 21. a4 {[%clk 0:02:08]}  Rc7 {[%clk 0:02:36]} 22. Qe1 {[%clk 0:01:52]}  Rbc8 {[%clk 0:02:33]} 23. Rc4 {[%clk 0:01:28]}  Qa7 {[%clk 0:02:28]} 24. Rdc1 {[%clk 0:01:25]}  b6 {[%clk 0:02:26]} 25. Qd1 {[%clk 0:01:12]}  Bf6 {[%clk 0:02:18]} 26. Bc6 {[%clk 0:01:11]}  e5 {[%clk 0:02:14]} 27. b4 {[%clk 0:01:02]}  axb4 {[%clk 0:02:14]} 28. Rxb4 {[%clk 0:01:02]}  Rb8 {[%clk 0:02:07]} 29. Rcb1 {[%clk 0:01:01]}  Rcc8 {[%clk 0:02:06]} 30. Qe2 {[%clk 0:00:56]}  Bd8 {[%clk 0:01:59]} 31. g3 {[%clk 0:00:51]}  Qe7 {[%clk 0:01:53]} 32. Kg2 {[%clk 0:00:50]}  Bc7 {[%clk 0:01:51]} 33. Qd2 {[%clk 0:00:27]}  Kh8 {[%clk 0:01:46]} 34. a5 {[%clk 0:00:26]}  bxa5 {[%clk 0:01:43]} 35. Rxb8 {[%clk 0:00:27]}  Rxb8 {[%clk 0:01:43]} 36. Rxb8+ {[%clk 0:00:27]}  Bxb8 {[%clk 0:01:43]} 37. Qxa5 {[%clk 0:00:25]}  Kg7 {[%clk 0:01:35]} 38. Qa8 {[%clk 0:00:20]}  Ba7 {[%clk 0:01:31]} 39. Qe8 {[%clk 0:00:18]}  Qxe8 {[%clk 0:01:06]} 40. Bxe8 {[%clk 0:00:18]}  Bb6 {[%clk 0:01:07]} 41. Bf2 {[%clk 0:00:17]}  Kf8 {[%clk 0:01:05]} 42. Bc6 {[%clk 0:00:17]}  Ke7 {[%clk 0:01:05]} 43. h4 {[%clk 0:00:17]}  Ba5 {[%clk 0:01:02]} 44. Bxc5 {[%clk 0:00:16]}  dxc5 {[%clk 0:01:03]} 45. Kf1 {[%clk 0:00:16]}  c4 {[%clk 0:01:03]} 46. Ke2 {[%clk 0:00:16]}  Kd6 {[%clk 0:01:02]} 47. Be8 {[%clk 0:00:13]}  f6 {[%clk 0:01:02]} 48. h5 {[%clk 0:00:12]}  gxh5 {[%clk 0:01:00]} 49. Bxh5 {[%clk 0:00:13]}  Kc5 {[%clk 0:00:59]} 50. Kd1 {[%clk 0:00:14]}  Bc7 {[%clk 0:00:59]} 51. Kc2 {[%clk 0:00:13]}  Kd4 {[%clk 0:00:59]} 52. Bf7 {[%clk 0:00:06]}  Bd6 {[%clk 0:00:59]} 53. Be6 {[%clk 0:00:05]}  h6 {[%clk 0:00:59]} 54. g4 {[%clk 0:00:06]}  Bb4 {[%clk 0:00:58]} 55. Bf5 {[%clk 0:00:06]}  Ke3 {[%clk 0:00:57]} 56. Be6 {[%clk 0:00:05]}  Kxf3 {[%clk 0:00:58]} 57. Bf5 {[%clk 0:00:06]}  Kf4 {[%clk 0:00:56]} 58. Kc1 {[%clk 0:00:06]}  Ke3 {[%clk 0:00:56]} 59. Kc2 {[%clk 0:00:07]}  Kd4 {[%clk 0:00:56]} 60. Kc1 {[%clk 0:00:07]}  Kd3 {[%clk 0:00:56]} 61. Kd1 {[%clk 0:00:03]}  c3 {[%clk 0:00:55]} 0-1


[Site "https://www.chess.com"]

[Event "Titled Tuesday Blitz March 29 Early 2022"]
[White "Dreev, Aleksey"]
[Black "Koellner, Ruben Gideon"]
[WhiteFideId "4100107"]
[BlackFideId "12993093"]
[WhiteElo "2625"]
[BlackElo "2557"]
[Result "1-0"]
[Round "02"]
[TimeControl "180+1"]
[Date "2022.03.29"]
[WhiteClock "0:00:36"]
[BlackClock "0:00:03"]

1. d4 {[%clk 0:03:00]}  Nf6 {[%clk 0:02:58]} 2. Nf3 {[%clk 0:02:59]}  d5 {[%clk 0:02:57]} 3. c4 {[%clk 0:02:59]}  e6 {[%clk 0:02:57]} 4. Nc3 {[%clk 0:02:55]}  Be7 {[%clk 0:02:56]} 5. Bf4 {[%clk 0:02:55]}  O-O {[%clk 0:02:55]} 6. e3 {[%clk 0:02:55]}  b6 {[%clk 0:02:55]} 7. cxd5 {[%clk 0:02:50]}  Nxd5 {[%clk 0:02:55]} 8. Nxd5 {[%clk 0:02:50]}  Qxd5 {[%clk 0:02:55]} 9. Bd3 {[%clk 0:02:50]}  Qa5+ {[%clk 0:02:46]} 10. Nd2 {[%clk 0:02:37]}  Ba6 {[%clk 0:02:44]} 11. Qc2 {[%clk 0:02:30]}  Bxd3 {[%clk 0:02:38]} 12. Qxd3 {[%clk 0:02:31]}  c5 {[%clk 0:02:32]} 13. O-O {[%clk 0:02:31]}  cxd4 {[%clk 0:02:32]} 14. Nb3 {[%clk 0:02:32]}  Qd5 {[%clk 0:02:07]} 15. Qxd4 {[%clk 0:02:29]}  Qxd4 {[%clk 0:01:51]} 16. Nxd4 {[%clk 0:02:29]}  Bf6 {[%clk 0:01:52]} 17. Nb5 {[%clk 0:02:09]}  Na6 {[%clk 0:01:49]} 18. Rab1 {[%clk 0:01:58]}  Nb4 {[%clk 0:01:39]} 19. Bd6 {[%clk 0:01:56]}  Nxa2 {[%clk 0:01:10]} 20. Ra1 {[%clk 0:01:35]}  Rfd8 {[%clk 0:00:17]} 21. Rxa2 {[%clk 0:01:34]}  a6 {[%clk 0:00:16]} 22. Nc7 {[%clk 0:01:34]}  Rac8 {[%clk 0:00:15]} 23. Bg3 {[%clk 0:01:30]}  a5 {[%clk 0:00:15]} 24. b3 {[%clk 0:00:57]}  Rd3 {[%clk 0:00:12]} 25. Rb1 {[%clk 0:00:55]}  h5 {[%clk 0:00:09]} 26. h4 {[%clk 0:00:50]}  Kh7 {[%clk 0:00:06]} 27. b4 {[%clk 0:00:48]}  Bc3 {[%clk 0:00:05]} 28. bxa5 {[%clk 0:00:46]}  bxa5 {[%clk 0:00:06]} 29. Nb5 {[%clk 0:00:41]}  Bb4 {[%clk 0:00:05]} 30. Nd4 {[%clk 0:00:42]}  Kg6 {[%clk 0:00:04]} 31. Nf3 {[%clk 0:00:42]}  f6 {[%clk 0:00:04]} 32. Nd4 {[%clk 0:00:40]}  e5 {[%clk 0:00:03]} 33. Nb3 {[%clk 0:00:36]} 1-0


[Site "https://www.chess.com"]

[Event "Titled Tuesday Blitz March 29 Early 2022"]
[White "FGHSMN"]
[Black "Devaev, Alexander"]
[BlackFideId "4169395"]
[WhiteElo "2754"]
[BlackElo "2185"]
[Result "1-0"]
[Round "02"]
[TimeControl "180+1"]
[Date "2022.03.30"]
[WhiteClock "0:00:42"]
[BlackClock "0:00:01"]

1. d4 {[%clk 0:03:00]}  Nf6 {[%clk 0:02:56]} 2. Nf3 {[%clk 0:03:01]}  e6 {[%clk 0:02:57]} 3. c4 {[%clk 0:03:01]}  c5 {[%clk 0:02:56]} 4. d5 {[%clk 0:03:00]}  exd5 {[%clk 0:02:57]} 5. cxd5 {[%clk 0:03:01]}  d6 {[%clk 0:02:58]} 6. Nc3 {[%clk 0:03:01]}  a6 {[%clk 0:02:58]} 7. a4 {[%clk 0:03:00]}  g6 {[%clk 0:02:59]} 8. Nd2 {[%clk 0:03:01]}  Bg7 {[%clk 0:02:59]} 9. e4 {[%clk 0:03:01]}  O-O {[%clk 0:03:00]} 10. Be2 {[%clk 0:03:02]}  Nbd7 {[%clk 0:03:00]} 11. O-O {[%clk 0:03:02]}  Rb8 {[%clk 0:03:00]} 12. Nc4 {[%clk 0:02:56]}  Qe7 {[%clk 0:03:00]} 13. Bf4 {[%clk 0:02:52]}  Ne8 {[%clk 0:03:00]} 14. a5 {[%clk 0:02:41]}  Ne5 {[%clk 0:02:52]} 15. Nb6 {[%clk 0:02:29]}  Nd7 {[%clk 0:01:58]} 16. Qb3 {[%clk 0:02:07]}  Nc7 {[%clk 0:01:34]} 17. Rfe1 {[%clk 0:01:59]}  Be5 {[%clk 0:01:24]} 18. Be3 {[%clk 0:01:57]}  Nxb6 {[%clk 0:00:54]} 19. axb6 {[%clk 0:01:56]}  Ne8 {[%clk 0:00:50]} 20. f4 {[%clk 0:01:52]}  Bg7 {[%clk 0:00:35]} 21. Bf3 {[%clk 0:01:47]}  Nf6 {[%clk 0:00:34]} 22. h3 {[%clk 0:01:46]}  Nd7 {[%clk 0:00:34]} 23. Na4 {[%clk 0:01:39]}  Re8 {[%clk 0:00:32]} 24. Rad1 {[%clk 0:01:39]}  Qf8 {[%clk 0:00:32]} 25. Bf2 {[%clk 0:01:38]}  Bh6 {[%clk 0:00:27]} 26. g3 {[%clk 0:01:36]}  Bg7 {[%clk 0:00:28]} 27. Bg2 {[%clk 0:01:36]}  h5 {[%clk 0:00:23]} 28. Qc4 {[%clk 0:01:29]}  Qe7 {[%clk 0:00:21]} 29. Re2 {[%clk 0:01:20]}  Qd8 {[%clk 0:00:20]} 30. Qb3 {[%clk 0:01:20]}  Qf6 {[%clk 0:00:20]} 31. Rde1 {[%clk 0:01:20]}  h4 {[%clk 0:00:18]} 32. Qc3 {[%clk 0:01:10]}  hxg3 {[%clk 0:00:17]} 33. Bxg3 {[%clk 0:01:11]}  Qxc3 {[%clk 0:00:15]} 34. bxc3 {[%clk 0:01:12]}  Nf8 {[%clk 0:00:13]} 35. c4 {[%clk 0:01:10]}  Bd7 {[%clk 0:00:13]} 36. Nb2 {[%clk 0:01:11]}  f6 {[%clk 0:00:12]} 37. Nd3 {[%clk 0:01:09]}  Bc8 {[%clk 0:00:11]} 38. e5 {[%clk 0:01:09]}  fxe5 {[%clk 0:00:11]} 39. fxe5 {[%clk 0:01:10]}  Bf5 {[%clk 0:00:12]} 40. Be4 {[%clk 0:01:08]}  Bxe4 {[%clk 0:00:10]} 41. Rxe4 {[%clk 0:01:09]}  dxe5 {[%clk 0:00:11]} 42. Nxc5 {[%clk 0:01:08]}  Nh7 {[%clk 0:00:06]} 43. Bxe5 {[%clk 0:01:05]}  Ng5 {[%clk 0:00:06]} 44. Bxb8 {[%clk 0:01:05]}  Nxe4 {[%clk 0:00:04]} 45. Rxe4 {[%clk 0:00:58]}  Rxb8 {[%clk 0:00:05]} 46. d6 {[%clk 0:00:56]}  Bf8 {[%clk 0:00:03]} 47. Re6 {[%clk 0:00:53]}  a5 {[%clk 0:00:03]} 48. Kf1 {[%clk 0:00:51]}  Ra8 {[%clk 0:00:02]} 49. d7 {[%clk 0:00:49]}  Kf7 {[%clk 0:00:01]} 50. Re5 {[%clk 0:00:42]} 1-0


[Site "https://www.chess.com"]

[Event "Titled Tuesday Blitz March 29 Early 2022"]
[White "Fromm, Marius"]
[Black "Dovbnia, Nikita"]
[WhiteFideId "12993190"]
[BlackFideId "54104599"]
[WhiteElo "2454"]
[BlackElo "2111"]
[Result "0-1"]
[Round "02"]
[TimeControl "180+1"]
[Date "2022.03.30"]
[WhiteClock "0:00:02"]
[BlackClock "0:00:59"]

1. e4 {[%clk 0:02:56]}  e5 {[%clk 0:02:58]} 2. Nf3 {[%clk 0:02:56]}  Nf6 {[%clk 0:02:57]} 3. Nxe5 {[%clk 0:02:56]}  d6 {[%clk 0:02:56]} 4. Nf3 {[%clk 0:02:57]}  Nxe4 {[%clk 0:02:56]} 5. d4 {[%clk 0:02:57]}  d5 {[%clk 0:02:50]} 6. Bd3 {[%clk 0:02:57]}  Bd6 {[%clk 0:02:50]} 7. O-O {[%clk 0:02:56]}  O-O {[%clk 0:02:50]} 8. c4 {[%clk 0:02:56]}  c6 {[%clk 0:02:51]} 9. Re1 {[%clk 0:02:57]}  Bf5 {[%clk 0:02:50]} 10. Qb3 {[%clk 0:02:57]}  Qd7 {[%clk 0:02:50]} 11. Nc3 {[%clk 0:02:52]}  dxc4 {[%clk 0:02:45]} 12. Bxc4 {[%clk 0:02:11]}  Nxc3 {[%clk 0:02:40]} 13. bxc3 {[%clk 0:02:03]}  Na6 {[%clk 0:02:40]} 14. Ne5 {[%clk 0:01:53]}  Bxe5 {[%clk 0:02:36]} 15. Rxe5 {[%clk 0:01:53]}  Bg6 {[%clk 0:02:34]} 16. Ba3 {[%clk 0:01:49]}  Rfe8 {[%clk 0:02:32]} 17. Rae1 {[%clk 0:01:49]}  b5 {[%clk 0:02:18]} 18. Bf1 {[%clk 0:01:44]}  Rxe5 {[%clk 0:02:18]} 19. Rxe5 {[%clk 0:01:38]}  Nc7 {[%clk 0:02:13]} 20. Re7 {[%clk 0:01:35]}  Qd8 {[%clk 0:02:13]} 21. c4 {[%clk 0:01:28]}  bxc4 {[%clk 0:02:11]} 22. Bxc4 {[%clk 0:01:29]}  Nd5 {[%clk 0:02:12]} 23. Rb7 {[%clk 0:01:16]}  Qe8 {[%clk 0:02:05]} 24. Qd1 {[%clk 0:01:13]}  Rb8 {[%clk 0:02:01]} 25. Rxb8 {[%clk 0:01:09]}  Qxb8 {[%clk 0:02:02]} 26. Bc5 {[%clk 0:01:07]}  a5 {[%clk 0:01:58]} 27. Qb3 {[%clk 0:01:04]}  Qe8 {[%clk 0:01:55]} 28. Qd1 {[%clk 0:00:53]}  h6 {[%clk 0:01:49]} 29. h3 {[%clk 0:00:44]}  Kh7 {[%clk 0:01:14]} 30. Qe2 {[%clk 0:00:42]}  Qb8 {[%clk 0:01:11]} 31. Bb3 {[%clk 0:00:36]}  a4 {[%clk 0:01:08]} 32. Bxa4 {[%clk 0:00:24]}  Nc3 {[%clk 0:01:06]} 33. Qa6 {[%clk 0:00:24]}  Qb1+ {[%clk 0:01:05]} 34. Kh2 {[%clk 0:00:20]}  Qxa2 {[%clk 0:01:05]} 35. Qxc6 {[%clk 0:00:03]}  Qxa4 {[%clk 0:01:05]} 36. Qc7 {[%clk 0:00:03]}  Ne4 {[%clk 0:01:02]} 37. Qf4 {[%clk 0:00:02]}  Nxc5 {[%clk 0:00:59]} 38. dxc5 {[%clk 0:00:02]}  Qxf4+ {[%clk 0:00:59]} 0-1


[Site "https://www.chess.com"]